bitfinex-derivatives/quotes_ETHF0:USTF0_20240917
["timestamp","ask_amount","ask_price","bid_price","bid_amount"]
[1726607930911,2.6191483,2347.6,2347.4,2.16429735]
[1726607931206,2.6191483,2347.6,2347.4,1.65589]
[1726607932097,2.6191483,2347.6,2347.5,0.50840377]
[1726607932502,2.6191483,2347.6,2347.5,5.19427377]
[1726607932697,4.0343,2347.7,2347.6,0.42586]
[1726607932698,1.65567983,2347.7,2347.6,0.42586]
[1726607932899,1.65567983,2347.7,2347.6,6.82743196]
[1726607933109,2.2057483,2347.9,2347.6,6.82743196]
[1726607933110,1.65567983,2347.8,2347.7,0.42584]
[1726607933297,1.65567983,2347.8,2347.7,2.55071196]
[1726607933705,1.65567983,2347.8,2347.7,2.76831721]
[1726607934310,1.65567983,2347.8,2347.7,2.55071196]
[1726607936212,1.65567983,2347.8,2347.7,2.04234]
[1726607936504,1.65567983,2347.8,2347.7,2.55066588]
[1726607936717,1.65567983,2347.8,2347.7,2.55066583]
[1726607940310,1.65567983,2347.8,2347.7,2.16416583]
[1726607942400,1.65567983,2347.8,2347.7,2.16416839]
[1726607946317,1.65567983,2347.8,2347.7,1.65584]
[1726607949813,1.65567983,2347.9,2347.8,0.42582]
[1726607950116,1.65567983,2347.9,2347.8,1.65582]
[1726607954612,5.68327983,2348.0,2347.8,1.65582]
[1726607955320,1.65567983,2347.9,2347.8,1.65582]
[1726607957216,5.68327983,2348.0,2347.8,1.65582]
[1726607957623,1.6556694,2347.9,2347.8,1.65581]
[1726607957916,5.6832694,2348.0,2347.8,1.65581]
[1726607959526,1.6556694,2347.9,2347.8,1.23]
[1726607959724,1.6556694,2347.9,2347.8,1.65582]
[1726607961726,3.2078,2347.9,2347.8,1.65582]
[1726607961922,3.625,2347.9,2347.8,1.65582]
[1726607962124,5.2806694,2347.9,2347.8,1.65582]
[1726607962825,3.625,2347.9,2347.8,1.65582]
[1726607964220,3.625,2347.9,2347.8,2.16413381]
[1726607964427,5.2806694,2347.9,2347.8,1.65582]
[1726607965321,5.2806694,2347.9,2347.8,2.16413468]
[1726607965522,5.2806694,2347.9,2347.8,2.16413549]
[1726607966322,5.2806694,2347.9,2347.8,4.5603516]
[1726607967625,5.2806694,2347.9,2347.8,4.71764997]
[1726607968030,5.2806694,2347.9,2347.8,4.71763529]
[1726607969329,1.1052675,2347.9,2347.8,10.00147529]
[1726607969526,1.1052675,2348.0,2347.9,0.4258]
[1726607969733,1.1052675,2348.0,2347.9,3.48761529]
[1726607970932,1.1052675,2348.0,2347.9,1.09135074]
[1726607971124,1.1052675,2348.0,2347.9,3.4873334]
[1726607973224,1.1052675,2348.0,2347.9,3.8851334]
[1726607973431,1.1052675,2348.0,2347.9,3.4873334]
[1726607973826,1.1052675,2348.0,2347.9,4.7173334]
[1726607974130,6.2182483,2348.2,2348.1,0.42576]
[1726607974131,1.10522893,2348.2,2348.1,0.42576]
[1726607974334,1.10522893,2348.3,2348.1,2.77149815]
[1726607974525,1.10522893,2348.3,2348.2,1.23]
[1726607974720,1.10522893,2348.3,2348.2,4.7168323]
[1726607975327,0.4212,2348.4,2348.3,0.42573]
[1726607975524,0.4212,2348.4,2348.3,3.4868123]
[1726607975723,0.4212,2348.4,2348.3,3.90518776]
[1726607976529,0.8222,2348.5,2348.4,0.42571]
[1726607976828,1.92755079,2348.5,2348.4,4.29098265]
[1726607977333,1.92729211,2348.5,2348.4,4.29098265]
[1726607978629,1.92729211,2348.5,2348.4,1.23]
[1726607978828,1.92729211,2348.5,2348.4,4.29097006]
[1726607979933,0.8222,2348.5,2348.4,4.71668006]
[1726607980431,0.4193,2348.5,2348.4,5.11318006]
[1726607980631,1.51369211,2348.6,2348.5,0.42569]
[1726607980830,1.51369211,2348.6,2348.5,4.15208472]
[1726607981128,0.4086,2348.6,2348.5,4.15208472]
[1726607981743,0.4086,2348.6,2348.5,3.48666006]
[1726607982032,1.51369211,2348.6,2348.5,3.7263829]
[1726607982529,6.19696211,2348.6,2348.5,3.7263829]
[1726607982737,6.32187,2348.6,2348.5,3.06097006]
[1726607982933,6.32187,2348.6,2348.5,2.41947006]
[1726607983139,8.5276183,2348.6,2348.5,2.41947006]
[1726607983635,7.2976183,2348.6,2348.5,3.64955648]
[1726607983834,5.09187,2348.6,2348.5,3.64955648]
[1726607984029,5.09187,2348.6,2348.5,1.23]
[1726607984230,5.09187,2348.6,2348.5,3.62569359]
[1726607984631,5.09187,2348.6,2348.5,3.62568508]
[1726607984832,5.09187,2348.6,2348.5,2.29475271]
[1726607985830,5.09187,2348.6,2348.5,1.23]
[1726607986027,5.09187,2348.6,2348.5,2.29477344]
[1726607988537,0.83427,2348.6,2348.5,2.29477344]
[1726607988735,5.09187,2348.6,2348.5,2.29477344]
[1726607988935,0.4086,2348.6,2348.5,4.05142253]
[1726607989243,1.51185998,2348.6,2348.5,4.05142253]
[1726607989437,0.4086,2348.6,2348.5,1.65569]
[1726607989645,0.4086,2348.6,2348.5,4.05122369]
[1726607990543,0.4086,2348.6,2348.5,4.05114139]
[1726607992945,0.4086,2348.6,2348.5,4.05112444]
[1726607994935,0.4086,2348.6,2348.5,4.71652086]
[1726607996446,0.4086,2348.6,2348.5,4.71651095]
[1726607997542,1.10325998,2348.8,2348.6,0.42567]
[1726607997739,1.10325998,2348.8,2348.7,3.46322095]
[1726607997937,1.10325998,2348.8,2348.7,3.88888095]
[1726607998140,1.49805998,2348.9,2348.7,4.28928095]
[1726607998341,1.49805998,2348.9,2348.8,4.29082095]
[1726607998538,0.3948,2348.9,2348.8,4.29082095]
[1726607998843,4.6524,2348.9,2348.8,2.96002923]
[1726607999144,5.75546494,2348.9,2348.8,2.96002923]
[1726607999444,5.75556837,2348.9,2348.8,2.96002923]
[1726607999943,5.75556837,2348.9,2348.8,2.95991266]
[1726608000140,5.75556837,2348.9,2348.8,4.71625471]
[1726608000347,0.3948,2348.9,2348.8,2.95991266]
[1726608001038,0.82042,2348.9,2348.8,2.95991266]
[1726608001240,0.82042,2348.9,2348.8,1.72991266]
[1726608001440,5.07802,2348.9,2348.8,1.72991266]
[1726608001840,5.07802,2348.9,2348.8,2.15555266]
[1726608004642,8.28582,2348.9,2348.8,2.15555266]
[1726608005947,8.28582,2348.9,2348.8,0.42564]
[1726608006150,8.28582,2348.9,2348.8,2.15560289]
[1726608006945,4.02822,2348.9,2348.8,2.15560289]
[1726608008045,0.82042,2348.9,2348.8,2.15560289]
[1726608008248,4.02822,2348.9,2348.8,2.15560289]
[1726608008751,4.02822,2348.9,2348.8,1.72996289]
[1726608008946,4.02822,2348.9,2348.8,2.15560289]
[1726608009147,6.2339683,2348.9,2348.8,2.15560289]
[1726608009449,4.02822,2348.9,2348.8,2.15560289]
[1726608009641,4.02822,2348.9,2348.8,2.15560005]
[1726608010244,4.02822,2348.9,2348.8,1.72996005]
[1726608010245,6.2339683,2348.9,2348.8,1.72996005]
[1726608010956,6.2339683,2348.9,2348.8,3.06069739]
[1726608012852,6.2339683,2348.9,2348.8,3.48633739]
[1726608013447,4.02822,2348.9,2348.8,3.48633739]
[1726608013958,4.02822,2348.9,2348.8,3.06069739]
[1726608014255,6.77902736,2348.9,2348.8,3.06069739]
[1726608015555,6.77902736,2348.9,2348.8,3.06080651]
[1726608018653,4.02822,2348.9,2348.8,3.06080651]
[1726608019957,0.42564,2348.8,2348.7,0.82804]
[1726608020257,3.18729029,2348.8,2348.7,3.88886118]
[1726608020458,2.76165029,2348.8,2348.7,4.55425763]
[1726608020954,6.78988029,2348.9,2348.7,4.55425763]
[1726608021147,6.78988029,2348.9,2348.8,3.06082541]
[1726608021550,6.79066749,2348.9,2348.8,3.06082541]
[1726608021750,4.02823,2348.9,2348.8,3.06082541]
[1726608022342,0.82043,2348.9,2348.8,3.06082541]
[1726608022549,4.02823,2348.9,2348.8,3.06082541]
[1726608022855,4.02823,2348.9,2348.7,0.82804]
[1726608023157,2.7627539,2348.8,2348.7,1.49342356]
[1726608023348,2.7627539,2348.8,2348.7,4.5541989]
[1726608024649,5.9705539,2348.8,2348.7,4.5541989]
[1726608025257,6.3961939,2348.8,2348.7,4.5541989]
[1726608025553,5.9705539,2348.8,2348.7,4.5541989]
[1726608026443,5.9705539,2348.8,2348.7,0.82804]
[1726608026444,3.2078,2348.8,2348.7,0.82804]
[1726608026647,3.2078,2348.8,2348.7,4.55416553]
[1726608027746,5.9705539,2348.8,2348.7,4.55416553]
[1726608028657,3.63344,2348.8,2348.7,4.55416553]
[1726608029555,6.3961939,2348.8,2348.7,4.55416553]
[1726608029755,6.3961939,2348.8,2348.7,4.55414493]
[1726608030157,6.3961939,2348.8,2348.7,3.88878691]
[1726608030355,6.3961939,2348.8,2348.7,3.88879188]
[1726608030552,6.3961939,2348.8,2348.7,1.89264935]
[1726608030753,6.3961939,2348.8,2348.7,3.88878501]
[1726608033370,6.3961939,2348.8,2348.7,0.82804]
[1726608033551,6.3961939,2348.8,2348.7,3.88874795]
[1726608036564,3.1883939,2348.8,2348.7,3.88874795]
[1726608036764,3.1883939,2348.8,2348.7,0.82804]
[1726608037070,6.3961939,2348.8,2348.7,3.88874326]
[1726608039567,3.1883939,2348.8,2348.7,3.88874326]
[1726608039762,6.3961939,2348.8,2348.7,3.88874326]
[1726608039967,3.1883939,2348.8,2348.7,3.88874326]
[1726608040269,6.3961939,2348.8,2348.7,4.55411364]
[1726608040461,6.3961939,2348.8,2348.7,8.28018727]
[1726608040767,6.3961939,2348.8,2348.7,6.94944668]
[1726608042457,5.9705539,2348.8,2348.7,6.94944668]
[1726608043567,5.9705539,2348.8,2348.7,3.88874335]
[1726608044165,5.9705539,2348.8,2348.7,6.5237343]
[1726608044567,2.7627539,2348.8,2348.7,6.5237343]
[1726608046473,2.7627539,2348.8,2348.7,6.9493943]
[1726608048666,2.7627539,2348.8,2348.7,3.88869095]
[1726608048968,2.7627539,2348.8,2348.7,8.14629095]
[1726608049170,2.21017823,2348.8,2348.7,10.56829141]
[1726608049385,1.10486743,2348.8,2348.7,12.19232577]
[1726608049587,0.46326743,2348.8,2348.7,12.74005461]
[1726608049895,1.65770857,2349.0,2348.7,22.15545903]
[1726608050188,2.21017823,2349.1,2349.0,0.4256]
[1726608050382,2.21017823,2349.1,2349.0,4.71623095]
[1726608050578,2.21017823,2349.1,2349.0,5.51473095]
[1726608050778,2.21017823,2349.1,2349.0,3.78480911]
[1726608050985,2.21017823,2349.1,2349.0,3.78461586]
[1726608051193,2.21017823,2349.1,2349.0,5.51428647]
[1726608051385,2.21017823,2349.2,2349.1,0.42558]
[1726608051585,2.21017823,2349.3,2349.2,0.42557]
[1726608051893,2.21017823,2349.4,2349.2,4.71575647]
[1726608052092,2.21017823,2349.4,2349.3,3.46498647]
[1726608052289,2.21017823,2349.4,2349.3,4.13015612]
[1726608052494,2.21017823,2349.4,2349.3,8.81250612]
[1726608052793,2.21017823,2349.4,2349.3,9.23350612]
[1726608052992,2.21017823,2349.4,2349.3,8.80795612]
[1726608053194,5.41797823,2349.5,2349.3,8.80795612]
[1726608053393,5.41797823,2349.5,2349.4,4.29018647]
[1726608054295,5.41797823,2349.5,2349.4,1.23]
[1726608054487,5.41797823,2349.5,2349.4,4.28976231]
[1726608055292,3.2078,2349.5,2349.4,4.28976231]
[1726608057295,4.86152934,2349.5,2349.4,4.28976231]
[1726608057783,4.86152934,2349.5,2349.4,3.62459659]
[1726608057988,4.86152934,2349.5,2349.4,4.2898073]
[1726608059397,4.86152934,2349.5,2349.4,2.9594563]
[1726608059692,4.86152934,2349.5,2349.4,4.28979701]
[1726608061005,4.86152934,2349.5,2349.4,2.9594563]
[1726608061291,4.86152934,2349.5,2349.2,1.23]
[1726608061292,0.42554,2349.4,2349.2,1.23]
[1726608061492,1.22165,2349.3,2349.2,1.23]
[1726608061693,3.27296123,2349.3,2349.2,3.06004727]
[1726608061897,12.94063,2349.3,2349.2,1.72959352]
[1726608062098,15.15080823,2349.3,2349.2,1.16359353]
[1726608062287,15.15080823,2349.3,2349.2,0.09922877]
[1726608062692,15.14436855,2349.3,2349.2,0.09922877]
[1726608063801,14.71881855,2349.3,2348.9,1.65562]
[1726608063995,0.4256,2349.0,2348.9,1.65562]
[1726608064294,0.4256,2349.0,2348.9,4.05066789]
[1726608065000,0.8123,2349.0,2348.9,4.05066789]
[1726608065305,0.3867,2349.0,2348.9,4.05066789]
[1726608065696,5.28619102,2349.2,2349.0,0.42559]
[1726608065892,5.67359102,2349.2,2349.1,2.29446532]
[1726608067000,5.67359102,2349.2,2349.1,4.05058661]
[1726608067201,5.67359102,2349.2,2349.1,2.72004532]
[1726608067399,5.24802102,2349.2,2349.1,1.65558]
[1726608067904,5.24802102,2349.2,2349.1,4.05051695]
[1726608068097,3.5952,2349.2,2349.1,4.05051695]
[1726608068292,3.2078,2349.2,2349.1,4.05051695]
[1726608068493,0.4005,2349.3,2349.2,0.42557]
[1726608068793,0.4005,2349.3,2349.2,3.22494973]
[1726608069106,2.05332102,2349.3,2349.2,3.22494973]
[1726608069290,2.05332102,2349.3,2349.2,3.61034973]
[1726608069498,0.4005,2349.3,2349.2,3.61034973]
[1726608070401,2.04022102,2349.4,2349.3,0.42555]
[1726608070593,2.04022102,2349.4,2349.3,2.71998052]
[1726608070799,2.04022102,2349.4,2349.3,1.65555]
[1726608071102,2.04022102,2349.4,2349.3,2.71986787]
[1726608071298,2.04022102,2349.4,2349.3,2.71987038]
[1726608071900,2.04099065,2349.4,2349.3,2.71987038]
[1726608072307,2.04099065,2349.4,2349.3,2.29432038]
[1726608072605,2.46652065,2349.4,2349.3,2.29432038]
[1726608072903,4.02073,2349.4,2349.3,2.29432038]
[1726608073105,5.67438812,2349.4,2349.3,2.29432038]
[1726608073298,5.67439952,2349.4,2349.3,2.29432038]
[1726608073696,5.67442963,2349.4,2349.3,2.29432038]
[1726608073897,5.67443111,2349.4,2349.3,2.29432038]
[1726608074098,5.67443111,2349.4,2349.3,2.95952991]
[1726608074300,11.54509855,2349.4,2349.3,1.72954488]
[1726608074500,0.42557,2349.2,2349.0,1.6556]
[1726608074707,0.7991,2349.1,2349.0,1.6556]
[1726608074905,1.1959,2349.1,2349.0,4.71585911]
[1726608075609,1.62148,2349.1,2349.0,4.71585911]
[1726608075805,4.82928,2349.1,2349.0,4.71585911]
[1726608076004,1.62148,2349.1,2349.0,4.29025911]
[1726608076806,3.27522724,2349.1,2349.0,4.71585911]
[1726608077112,3.27522724,2349.1,2349.0,4.71593064]
[1726608077311,3.27522724,2349.1,2349.0,3.38531158]
[1726608077717,3.27522724,2349.1,2349.0,4.71590785]
[1726608077907,3.27522724,2349.1,2349.0,4.71583947]
[1726608081209,2.84964724,2349.1,2349.0,1.6556]
[1726608081508,2.84964724,2349.1,2349.0,2.32087877]
[1726608081715,2.84964724,2349.1,2349.0,4.71582604]
[1726608082308,2.84964724,2349.1,2349.0,4.71580318]
[1726608084815,2.84964724,2349.1,2349.0,1.6556]
[1726608085016,2.84964724,2349.1,2349.0,4.71592572]
[1726608086117,1.62148,2349.1,2349.0,4.29032572]
[1726608086304,1.62148,2349.1,2349.0,3.06032572]
[1726608086510,3.82521855,2349.1,2349.0,4.29032572]
[1726608088316,3.82521855,2349.1,2349.0,4.29040405]
[1726608090009,7.03301855,2349.1,2349.0,4.29040405]
[1726608091212,6.60743855,2349.1,2349.0,4.71600405]
[1726608091415,6.60743855,2349.1,2349.0,5.10840405]
[1726608091911,7.03301855,2349.1,2349.0,1.6224]
[1726608092109,7.03301855,2349.1,2349.0,4.68272551]
[1726608092717,3.82521855,2349.1,2349.0,4.68268078]
[1726608093211,3.82521855,2349.1,2349.0,5.10828078]
[1726608093510,3.82521855,2349.1,2349.0,4.68268078]
[1726608094419,3.82521855,2349.1,2349.0,5.10828078]
[1726608094915,3.82521855,2349.1,2349.0,4.71588078]
[1726608095108,3.82521855,2349.1,2349.0,4.7159898]
[1726608096118,3.82521855,2349.1,2349.0,4.2903898]
[1726608097320,3.82521855,2349.1,2349.0,4.7159898]
[1726608097515,7.03301855,2349.1,2349.0,4.7159898]
[1726608097921,4.82928,2349.1,2349.0,4.7159898]
[1726608098117,7.03699456,2349.1,2349.0,4.7159898]
[1726608098315,7.03699456,2349.1,2349.0,4.2903898]
[1726608098518,7.03699456,2349.1,2349.0,1.23]
[1726608098714,7.03699456,2349.1,2349.0,4.29041993]
[1726608099721,7.03699456,2349.1,2349.0,4.71601993]
[1726608100222,4.82928,2349.1,2349.0,4.71601993]
[1726608100422,7.03779729,2349.1,2349.0,4.71601993]
[1726608100618,4.82928,2349.1,2349.0,4.71601993]
[1726608101726,4.82928,2349.1,2349.0,4.29041993]
[1726608102021,4.4037,2349.1,2348.8,0.3866]
[1726608102217,7.5920339,2349.1,2349.0,3.06045342]
[1726608102413,0.4256,2349.0,2348.8,2.04222]
[1726608102621,2.63494747,2349.0,2348.9,2.42159892]
[1726608102819,2.63494747,2349.0,2348.9,4.15144074]
[1726608103218,2.63494747,2349.0,2348.9,3.72582074]
[1726608103821,3.1883539,2349.0,2348.9,3.06049757]
[1726608105424,0.42565,2348.8,2348.7,1.23]
[1726608105630,3.2078,2348.8,2348.7,2.32104115]
[1726608105816,5.41746144,2348.8,2348.7,5.38184295]
[1726608106128,6.64680144,2348.8,2348.7,4.95616582]
[1726608106329,4.43714,2348.8,2348.7,4.95616582]
[1726608106627,6.64660023,2348.8,2348.7,4.95616582]
[1726608106929,6.64652669,2348.8,2348.7,4.95616582]
[1726608107134,4.43714,2348.8,2348.7,4.95616582]
[1726608107427,7.19930304,2348.8,2348.7,4.2908018]
[1726608107815,4.43714,2348.8,2348.7,3.0608018]
[1726608108021,7.19930304,2348.8,2348.7,3.0608018]
[1726608108429,6.64601066,2348.8,2348.7,3.0608018]
[1726608108726,0.42566,2348.7,2348.6,2.04377]
[1726608108922,0.42566,2348.7,2348.6,5.76991829]
[1726608111934,2.08163696,2348.7,2348.6,5.76991829]
[1726608112233,2.08163696,2348.7,2348.6,5.76992764]
[1726608112431,2.08163696,2348.7,2348.6,4.53992764]
[1726608112628,2.08163696,2348.7,2348.6,5.76992764]
[1726608113034,0.42566,2348.7,2348.6,4.11425764]
[1726608113331,3.06213066,2348.7,2348.6,3.06077235]
[1726608113530,7.31973066,2348.7,2348.6,3.06077235]
[1726608113717,6.17501,2348.7,2348.6,3.06077235]
[1726608113922,8.93717304,2348.7,2348.6,3.06077235]
[1726608114129,8.93717304,2348.7,2348.6,1.73000176]
[1726608114921,10.16717304,2348.7,2348.6,1.73000176]
[1726608115133,14.46916,2348.7,2348.6,1.73000176]
[1726608115326,14.46916,2348.7,2348.6,0.66538529]
[1726608116427,0.42576,2348.1,2348.0,2.49437]
[1726608116734,0.42576,2348.1,2348.0,4.89028877]
[1726608116931,0.42576,2348.1,2348.0,4.46450877]
[1726608117231,0.42576,2348.1,2348.0,4.89028877]
[1726608118528,0.42576,2348.1,2348.0,3.66028877]
[1726608118734,0.42576,2348.1,2348.0,4.89028877]
[1726608119340,0.42576,2348.2,2348.0,4.89027877]
[1726608119528,0.42576,2348.2,2348.1,1.06484834]
[1726608120629,2.08006948,2348.2,2348.1,1.06484834]
[1726608121031,0.42576,2348.2,2348.1,1.06484834]
[1726608121334,2.08006948,2348.2,2348.1,1.06484834]
[1726608122032,2.08006948,2348.2,2348.0,2.49438]
[1726608122033,0.42576,2348.1,2348.0,2.49438]
[1726608122539,0.42576,2348.1,2348.0,3.5592818]
[1726608125333,0.42576,2348.1,2348.0,2.49438]
[1726608125830,0.42576,2348.1,2348.0,3.55927954]
[1726608127339,0.42576,2348.1,2348.0,2.49438]
[1726608127830,0.42576,2348.1,2348.0,3.55927609]
[1726608128230,0.42576,2348.1,2348.0,3.15994594]
[1726608129733,0.42576,2348.1,2348.0,1.50416594]
[1726608131038,0.42576,2348.1,2348.0,1.92994594]
[1726608131341,0.42576,2348.1,2348.0,1.92998135]
[1726608132630,1.06442,2348.1,2347.9,0.4029]
[1726608132829,0.4258,2347.9,2347.8,1.23]
[1726608133037,0.4258,2347.9,2347.8,2.32144069]
[1726608133232,0.4258,2347.9,2347.8,1.65582]
[1726608133440,0.4258,2347.9,2347.8,2.32144836]
[1726608133639,0.4258,2347.9,2347.8,2.32143981]
[1726608134134,0.4258,2347.9,2347.8,0.66561981]
[1726608135639,0.8139,2347.9,2347.8,0.66561981]
[1726608136147,0.8139,2347.9,2347.7,1.64073]
[1726608136542,0.42582,2347.8,2347.7,0.7998]
[1726608136842,0.42585,2347.7,2347.4,2.08118]
[1726608137044,0.42586,2347.6,2347.5,0.66566743]
[1726608137245,0.42587,2347.5,2347.4,1.6553]
[1726608137440,0.42587,2347.5,2347.4,2.3210501]
[1726608137635,0.42587,2347.5,2347.4,2.32106128]
[1726608137844,0.42587,2347.5,2347.4,0.4253]
[1726608138240,0.42589,2347.4,2347.2,0.8304]
[1726608138442,4.04119,2347.4,2347.3,0.66577183]
[1726608138943,4.04119,2347.4,2347.2,0.8304]
[1726608138944,0.42591,2347.3,2347.2,0.8304]
[1726608139136,0.42591,2347.3,2347.2,1.49620724]
[1726608139342,0.42591,2347.3,2347.2,0.8304]
[1726608140254,3.6153,2347.4,2347.2,0.8304]
[1726608140544,0.42591,2347.3,2347.2,0.8304]
[1726608140743,3.6153,2347.4,2347.3,0.42591]
[1726608140946,3.2078,2347.4,2347.3,0.42591]
[1726608141144,3.2078,2347.4,2347.3,0.83991]
[1726608143057,3.2078,2347.4,2347.3,5.09991]
[1726608144751,0.42586,2347.6,2347.3,5.09991]
[1726608144947,3.54144948,2347.9,2347.5,0.42587]
[1726608144948,3.63363,2347.8,2347.5,0.42587]
[1726608145154,0.42584,2347.7,2347.6,0.4091]
[1726608149645,3.63364,2347.7,2347.6,0.4091]
[1726608152643,3.63364,2347.7,2347.6,0.83496]
[1726608152843,3.63364,2347.7,2347.6,0.4091]
[1726608153149,3.63364,2347.7,2347.6,0.83496]
[1726608153750,0.42584,2347.7,2347.6,0.83496]
[1726608153953,3.63364,2347.7,2347.6,0.83496]
[1726608155650,0.42584,2347.7,2347.6,0.83496]
[1726608156051,3.63363,2347.8,2347.6,0.83496]
[1726608156247,5.28793948,2347.8,2347.6,2.06496]
[1726608156453,3.63363,2347.8,2347.6,2.06496]
[1726608156755,3.63363,2347.8,2347.7,0.4055]
[1726608157264,5.28793948,2347.8,2347.7,0.4055]
[1726608158558,2.08013948,2347.8,2347.7,0.4055]
[1726608158760,5.28793948,2347.8,2347.7,0.4055]
[1726608159257,5.28793948,2347.8,2347.7,1.07120392]
[1726608159459,3.63363,2347.8,2347.7,0.66570392]
[1726608159961,5.28833275,2347.8,2347.7,0.66570392]
[1726608160165,3.63363,2347.8,2347.7,0.66570392]
[1726608160356,4.86363,2347.8,2347.7,0.66570392]
[1726608160556,0.42588,2347.5,2347.3,0.414]
[1726608160768,0.42588,2347.5,2347.1,1.23]
[1726608160769,0.82749,2347.4,2347.2,1.24812]
[1726608160959,1.25129,2347.4,2347.3,1.73099182]
[1726608161160,0.8254,2347.4,2347.3,1.73099182]
[1726608161357,0.8254,2347.4,2347.3,1.73099831]
[1726608162657,0.8254,2347.4,2347.3,3.48842854]
[1726608163161,0.8254,2347.4,2347.3,3.48843136]
[1726608163759,2.50717586,2347.6,2347.4,0.42589]
[1726608163964,2.91647586,2347.6,2347.5,2.12019831]
[1726608164666,2.91647586,2347.6,2347.5,0.3892]
[1726608164862,2.91647586,2347.6,2347.5,2.12011834]
[1726608165567,1.26146,2347.6,2347.5,2.12011834]
[1726608165760,2.91706626,2347.6,2347.5,2.12011834]
[1726608165961,1.26146,2347.6,2347.5,2.12011834]
[1726608166357,2.91707031,2347.6,2347.5,2.12011834]
[1726608166561,1.26146,2347.6,2347.5,2.12011834]
[1726608167467,2.91728152,2347.6,2347.5,2.12011834]
[1726608167659,2.91729161,2347.6,2347.5,2.12011834]
[1726608168059,1.26146,2347.6,2347.5,2.12011834]
[1726608170174,3.46814781,2347.6,2347.5,2.12011834]
[1726608170574,3.46814781,2347.6,2347.5,2.54598834]
[1726608171673,3.46814781,2347.6,2347.5,2.12011834]
[1726608172670,6.67594781,2347.6,2347.5,2.12011834]
[1726608173164,6.67594781,2347.6,2347.5,1.73091834]
[1726608173367,13.78109247,2347.6,2347.5,0.66573782]
[1726608173670,11.02391,2347.6,2347.5,0.66573782]
[1726608175270,0.42591,2347.3,2347.2,0.42592]
[1726608175574,2.63567369,2347.3,2347.2,3.48867194]
[1726608176170,5.84347369,2347.3,2347.2,3.48867194]
[1726608176374,5.84347369,2347.3,2347.2,3.48867716]
[1726608176667,6.22857369,2347.3,2347.2,3.48867716]
[1726608178377,6.22857369,2347.3,2347.2,3.48869329]
[1726608178875,6.22857369,2347.3,2347.2,0.42592]
[1726608179071,6.22857369,2347.3,2347.2,3.48865154]
[1726608179870,6.21376369,2347.3,2347.2,3.48865154]
[1726608180073,3.00596369,2347.3,2347.2,3.89035154]
[1726608181270,3.00596369,2347.3,2347.2,0.82762]
[1726608181471,3.43187369,2347.3,2347.2,3.89026027]
[1726608181975,6.63967369,2347.3,2347.2,3.48856027]
[1726608182177,6.64109892,2347.3,2347.2,3.06264027]
[1726608182570,6.64090156,2347.3,2347.2,3.06264027]
[1726608183375,4.42991,2347.3,2347.2,3.06264027]
[1726608183576,4.42991,2347.3,2347.2,3.48857027]
[1726608184285,4.42991,2347.3,2347.2,3.06264027]
[1726608184470,6.64052279,2347.3,2347.2,3.06264027]
[1726608184679,4.42991,2347.3,2347.2,0.42593]
[1726608184981,4.42991,2347.3,2347.2,3.48870591]
[1726608185181,6.64058458,2347.3,2347.2,3.06277591]
[1726608185376,4.42991,2347.3,2347.2,3.06277591]
[1726608185883,6.64050732,2347.3,2347.2,3.06277591]
[1726608186778,6.64050732,2347.3,2347.2,3.48870591]
[1726608187076,4.42991,2347.3,2347.2,3.06277591]
[1726608187275,6.64032146,2347.3,2347.2,3.06277591]
[1726608188176,0.42593,2347.2,2347.1,0.42593]
[1726608188486,0.42593,2347.2,2347.1,2.82289226]
[1726608188678,0.42593,2347.2,2347.1,3.48872503]
[1726608191581,0.42593,2347.2,2347.1,1.49124317]
[1726608191788,0.42593,2347.2,2347.1,3.48870537]
[1726608192884,2.08351369,2347.2,2347.1,3.48870537]
[1726608193081,0.42593,2347.2,2347.1,3.48870537]
[1726608193284,2.08350897,2347.2,2347.1,3.48870537]
[1726608194080,0.42593,2347.2,2347.1,3.48870537]
[1726608194388,2.08346119,2347.2,2347.1,3.48870537]
[1726608194988,2.08346119,2347.2,2347.1,0.42593]
[1726608195192,2.08346119,2347.2,2347.1,3.48869565]
[1726608197580,0.42593,2347.2,2347.1,3.48869565]
[1726608197982,2.08362025,2347.2,2347.1,3.48869565]
[1726608199485,1.65769025,2347.2,2347.1,3.48869565]
[1726608199689,2.08362025,2347.2,2347.1,3.48869565]
[1726608199982,6.64027048,2347.3,2347.2,0.42593]
[1726608200184,6.64027048,2347.3,2347.2,3.90819565]
[1726608200379,3.43247048,2347.3,2347.2,0.84543]
[1726608200581,3.43247048,2347.3,2347.2,3.90827896]
[1726608202692,2.63627048,2347.3,2347.2,3.90827896]
[1726608203096,0.42592,2347.3,2347.2,3.90827896]
[1726608203293,2.63675648,2347.3,2347.2,3.48234896]
[1726608203494,0.42592,2347.3,2347.2,3.48234896]
[1726608204091,5.84450585,2347.3,2347.2,3.48234896]
[1726608204389,3.63372,2347.3,2347.2,3.48234896]
[1726608204695,3.63372,2347.3,2347.2,3.90827896]
[1726608204993,3.63372,2347.3,2347.2,3.48234896]
[1726608205214,3.63372,2347.3,2347.2,1.75117346]
[1726608205395,1.32144961,2347.3,2347.2,10.6795]
[1726608205691,1.65865253,2347.7,2347.2,15.67226043]
[1726608205898,2.76220461,2348.0,2347.6,1.65586]
[1726608206091,3.18240461,2348.1,2347.6,2.34652989]
[1726608206401,0.4202,2348.1,2347.7,4.15423995]
[1726608206592,0.4202,2348.1,2347.7,5.48470422]
[1726608206787,0.4202,2348.1,2347.8,3.06163378]
[1726608207087,0.4202,2348.1,2347.9,3.06163378]
[1726608207284,0.4202,2348.1,2348.0,1.73048866]
[1726608208694,0.4202,2348.1,2348.0,1.73048904]
[1726608211187,0.4202,2348.1,2348.0,0.66557271]
[1726608213091,3.30096883,2348.9,2348.6,0.42566]
[1726608213285,0.7964,2349.0,2348.8,1.23]
[1726608213486,0.7964,2349.0,2348.9,0.66533575]
[1726608213694,0.7964,2349.0,2348.6,0.42567]
[1726608213896,0.7964,2349.0,2348.7,2.15550326]
[1726608214091,0.7964,2349.0,2348.8,1.06452985]
[1726608214291,0.7964,2349.0,2348.8,1.23]
[1726608215501,0.7964,2349.0,2348.8,1.65564]
[1726608215895,0.7964,2349.0,2348.8,1.23]
[1726608216492,0.7964,2349.0,2348.8,1.65564]
[1726608218716,3.2078,2349.1,2348.8,1.65564]
[1726608218912,0.8027,2350.1,2349.7,0.42546]
[1726608219120,0.8027,2350.1,2349.5,0.42551]
[1726608219711,3.2078,2350.0,2349.5,0.42551]
[1726608220118,0.8027,2350.1,2349.4,1.23]
[1726608220308,3.2078,2350.0,2349.4,1.23]